fUSD/lending_fUSD_20250926
["ID","MTS","AMOUNT","RATE_DAILY","PERIOD"]
[387843102,1758917448237,-6796.60186426,0.0002,2]
[387843103,1758917448249,-409.14874246,0.0002,2]
[387843104,1758917448260,-3232.77599793,0.0002,2]
[387843105,1758917448272,-6984.30355,0.0002,2]
[387843106,1758917448283,-4306.3172684,0.0002,2]
[387843107,1758917448341,-4961.23657326,0.0002,2]
[387843108,1758917448353,-6151.40176262,0.0002,2]
[387843109,1758917528386,167.48,9.546e-05,2]
[387843110,1758917528567,167.48,0.00011932,2]
[387843111,1758917528731,167.48,0.00014319,2]
[387843112,1758917528923,167.48,0.00016705,2]
[387843115,1758917617599,151.836222,0.00018402,2]
[387843116,1758917618015,151.836222,0.00018156,2]
[387843117,1758917618584,151.836222,0.00017909,2]
[387843118,1758917618874,151.836222,0.00017897,2]
[387843119,1758917619499,151.836222,0.00017857,2]
[387843120,1758917620030,151.836222,0.00017857,2]
[387843121,1758917620222,151.836222,0.00017852,2]
[387843122,1758917620739,150.506317,0.00018401,2]
[387843123,1758917621624,150.506317,0.00017859,2]
[387843124,1758917626353,153.018509,0.00017897,2]
[387843125,1758917626871,1900.82,0.00018502,2]
[387843126,1758917630264,-167.88535837,0.0001858,2]
[387843127,1758917656475,200.0,0.00018,2]
[387843128,1758917708298,1500.0,0.00018502,2]
[387843155,1758918100871,154.447357,0.00018402,2]
[387843156,1758918101201,154.447357,0.00018156,2]
[387843157,1758918101441,154.447357,0.00017909,2]
[387843158,1758918101672,154.447357,0.00017857,2]
[387843159,1758918102238,154.447357,0.00017856,2]
[387843160,1758918107414,151.721231,0.00017897,2]
[387843161,1758918110749,153.018509,0.00018156,2]
[387843163,1758918132932,500.0,0.00030136,120]
[387843168,1758918315926,150.0,0.00018,2]
[387843169,1758918320721,150.0,0.00018,2]
[387843170,1758918323010,150.0,0.00018,2]
[387843171,1758918328729,157.44722479,0.00018,2]
[387843173,1758918337421,150.0,0.00018,2]
[387843174,1758918338364,150.0,0.00018,2]
[387843239,1758918632876,-300.0,0.00018579,2]
[387843241,1758918632886,-300.0,0.00018579,2]
[387843243,1758918632899,-1200.0,0.00018579,2]
[387843246,1758918632908,-78.95663981,0.00018579,2]
[387843248,1758918632920,-171.04336019,0.00018579,2]
[387843250,1758918632929,-2500.0,0.0001858,2]
[387843252,1758918632939,-2000.0,0.0001858,2]
[387843254,1758918632949,-2000.0,0.0001858,2]
[387843256,1758918632958,-2000.0,0.0001858,2]
[387843258,1758918632968,-777.117,0.0001858,2]
[387843260,1758918632978,-527.735,0.0001858,2]
[387843262,1758918632987,-1000.0,0.0001858,2]
[387843264,1758918632997,-599.199,0.0001858,2]
[387843266,1758918633006,-331.61,0.00018597,2]
[387843268,1758918633016,-2326.17100143,0.00018607,2]
[387843276,1758918633095,-173.82899857,0.00018607,2]
[387843277,1758918633105,-465.24,0.00018607,2]
[387843278,1758918633115,-150.99,0.00018674,2]
[387843279,1758918633123,-162.32942677,0.00018676,2]
[387843280,1758918633133,-873.86,0.00018682,2]
[387843281,1758918633143,-185.12,0.00018736,2]
[387843282,1758918633152,-150.0,0.00018928,7]
[387843283,1758918633163,-201.93286099,0.00018992,2]
[387843284,1758918633172,-9211.34798985,0.00018992,2]
[387843285,1758918633182,-267.46074303,0.00018992,2]
[387843286,1758918633192,-2609.619724,0.00019,2]
[387843287,1758918633202,-1000.0,0.00019012,2]
[387843289,1758918633211,-8814.06,0.00019012,2]
[387843291,1758918633221,-212.44,0.00019012,2]
[387843293,1758918633231,-9552.16786547,0.00019047,2]
[387843294,1758918633240,-167.48,0.00019092,2]
[387843295,1758918633250,-150.0,0.000191,2]
[387843296,1758918633259,-7614.53829164,0.00019102,2]
[387843297,1758918633270,-168.0,0.00019223,2]
[387843298,1758918633282,-167.31,0.00019283,2]
[387843299,1758918633291,-295.62,0.00019294,2]
[387843300,1758918633301,-204.46477557,0.00019328,2]
[387843301,1758918633310,-695.39793187,0.00019328,2]
[387843302,1758918633320,-160.0,0.00019328,2]
[387843303,1758918633330,-322.6107,0.00019328,2]
[387843304,1758918633340,-151.0,0.00019328,2]
[387843305,1758918633351,-151.0,0.00019328,2]
[387843306,1758918633360,-151.0,0.00019328,2]
[387843307,1758918633370,-151.0,0.00019328,2]
[387843308,1758918633379,-151.0,0.00019328,2]
[387843309,1758918633389,-151.0,0.00019328,2]
[387843310,1758918633399,-151.0,0.00019328,2]
[387843311,1758918633408,-151.0,0.00019328,2]
[387843312,1758918633417,-151.0,0.00019328,2]
[387843313,1758918633426,-151.0,0.00019328,2]
[387843314,1758918633436,-151.0,0.00019328,2]
[387843315,1758918633445,-151.0,0.00019328,2]
[387843316,1758918633455,-151.0,0.00019328,2]
[387843317,1758918633464,-151.0,0.00019328,2]
[387843318,1758918633474,-151.0,0.00019328,2]
[387843319,1758918633484,-151.0,0.00019328,2]
[387843320,1758918633494,-151.0,0.00019328,2]
[387843321,1758918633503,-151.0,0.00019328,2]
[387843322,1758918633513,-1081.16982363,0.00019399,2]
[387843323,1758918633522,-200.0,0.000194,7]
[387843324,1758918633531,-500.0,0.000195,7]
[387843325,1758918633541,-465.24,0.00019537,2]
[387843326,1758918633551,-700.0,0.000196,7]
[387843327,1758918633561,-1000.0,0.000197,7]
[387843328,1758918633570,-604.57954796,0.00019709,2]
[387843329,1758918633580,-1166.0744044,0.0001971,2]
[387843330,1758918633590,-1000.0,0.00019731,2]
[387843331,1758918633600,-1425.0,0.00019787,2]
[387843332,1758918633609,-9137.61188506,0.000198,2]
[387843333,1758918633619,-674.43148,0.000198,2]
[387843334,1758918633629,-1200.0,0.000198,7]
[387843335,1758918633639,-20295.85770057,0.0001981,2]
[387843336,1758918633649,-9010.14427478,0.0001981,2]
[387843337,1758918633663,-15105.00401145,0.0001981,2]
[387843338,1758918633673,-994.71552186,0.00019822,2]
[387843339,1758918633682,-178.46576431,0.00019843,2]
[387843340,1758918633692,-178.46576431,0.00019846,2]
[387843341,1758918633701,-1425.0,0.00019866,2]
[387843342,1758918633711,-719.20082724,0.00019866,2]
[387843343,1758918633723,-705.79917276,0.00019866,2]
[387843344,1758918633733,-5000.0,0.00019895,2]
[387843345,1758918633742,-1166.07440439,0.00019895,2]
[387843346,1758918633752,-334.11125124,0.00019898,2]
[387843347,1758918633761,-171.36807266,0.00019898,2]
[387843348,1758918633773,-1700.6545972,0.00019899,2]
[387843349,1758918633783,-1700.65459714,0.00019899,2]
[387843350,1758918633793,-1700.65459714,0.00019899,2]
[387843351,1758918633802,-1700.65459714,0.00019899,2]
[387843352,1758918633812,-1700.65459714,0.00019899,2]
[387843353,1758918633822,-1700.65459714,0.000199,2]
[387843354,1758918633832,-1700.65459714,0.000199,2]
[387843355,1758918633842,-1889.39726053,0.000199,2]
[387843356,1758918633853,-1067.63853947,0.000199,2]
[387843357,1758918633863,-1700.65459714,0.000199,2]
[387843358,1758918633872,-1700.65459714,0.000199,2]
[387843359,1758918633882,-1700.65459714,0.000199,2]
[387843360,1758918633891,-279.63397788,0.000199,2]
[387843361,1758918633901,-200.0,0.000199,7]
[387843362,1758918633911,-20808.55972716,0.000199,2]
[387843363,1758918633920,-200.97513986,0.000199,2]
[387843364,1758918633929,-271.63566892,0.000199,2]
[387843365,1758918633939,-1142.38009228,0.000199,2]
[387843366,1758918633948,-953.09546173,0.00019935,2]
[387843367,1758918634017,-525.01453827,0.00019935,2]
[387843368,1758918634027,-285.59895431,0.00019937,2]
[387843369,1758918634036,-1000.0,0.00019939,2]
[387843370,1758918634046,-178.46576431,0.00019947,2]
[387843371,1758918634055,-1000.0,0.00019948,2]
[387843372,1758918634065,-178.46576431,0.00019956,2]
[387843373,1758918634075,-178.46576431,0.00019958,2]
[387843374,1758918634084,-151.0,0.00019965,2]
[387843375,1758918634094,-6465.63006853,0.00019968,2]
[387843376,1758918634103,-178.46576431,0.00019972,2]
[387843377,1758918634113,-500.0,0.00019973,2]
[387843378,1758918634122,-500.0,0.00019973,2]
[387843379,1758918634131,-500.0,0.00019973,2]
[387843380,1758918634141,-500.0,0.00019973,2]
[387843381,1758918634150,-500.0,0.00019973,2]
[387843382,1758918634375,-500.0,0.00019973,2]
[387843383,1758918634385,-1425.0,0.00019974,2]
[387843384,1758918634394,-178.46576431,0.0001998,2]
[387843385,1758918634404,-45698.76813258,0.0001999,2]
[387843386,1758918634413,-231.3,0.00019991,2]
[387843387,1758918634424,-151.0,0.00019992,2]
[387843388,1758918634433,-21046.5910151,0.00019995,2]
[387843389,1758918634466,-1661.98799914,0.00019995,2]
[387843390,1758918634480,-13161.23978037,0.00019995,2]
[387843391,1758918634619,-366.060186,0.00019995,2]
[387843470,1758918642202,-9754.62255224,0.00019995,2]
[387843471,1758918642552,-978.83418299,0.00019995,2]
[387843474,1758918644571,-1390.78196913,0.00019995,2]
[387843475,1758918644583,-3519.49640971,0.00019995,2]
[387843528,1758918648616,-273937.7851831,0.00019995,2]
[387843529,1758918648628,-24576.6146515,0.00019995,2]
[387843530,1758918648669,-638.4723174,0.00019995,2]
[387843531,1758918648681,-407.44650021,0.00019995,2]
[387843532,1758918648693,-2189.8,0.00019995,2]
[387843533,1758918648730,-1000.54486771,0.00019995,2]
[387843534,1758918648763,-2340.00000005,0.00019995,2]
[387843535,1758918651519,-886.05744163,0.00019995,2]
[387843536,1758918651618,-408.67312528,0.00019995,2]
[387843537,1758918651702,-1173.42251106,0.00019995,2]
[387843538,1758918651806,-1105.48280435,0.00019995,2]
[387843539,1758918651817,-391.843,0.00019995,2]
[387843540,1758918651828,-478.11121701,0.00019995,2]
[387843541,1758918651839,-387.34840818,0.00019995,2]
[387843542,1758918651851,-705.2,0.00019995,2]
[387843543,1758918651863,-1046.34,0.00019995,2]
[387843544,1758918651875,-734.04574579,0.00019995,2]
[387843545,1758918651886,-400.0,0.00019995,2]
[387843546,1758918655642,-168.0,0.0001991,2]
[387843547,1758918655652,-756.4370306,0.00019995,2]
[387843548,1758918655663,-1124.8,0.00019995,2]
[387843549,1758918655845,-2600.28723327,0.00019995,2]
[387843550,1758918655856,-2579.01316117,0.00019995,2]
[387843551,1758918655887,-450.88062046,0.00019995,2]
[387843568,1758919101972,500.0,0.00030136,120]
[387843572,1758919309284,-214.1158843,0.00018574,2]
[387843573,1758919313293,-85.8841157,0.00018574,2]
[387843574,1758919313316,-174.46133227,0.00018575,2]
[387843575,1758919317924,-325.75224573,0.00018575,2]
[387843576,1758919317950,-120.84587185,0.00018575,2]
[387843577,1758919323828,-321.52649863,0.00018575,2]
[387843578,1758919330352,-57.62762952,0.00018575,2]
[387843579,1758919330378,-124.02884217,0.00018575,2]
[387843580,1758919336981,-274.02884217,0.00018575,2]
[387843581,1758919343917,-101.94231566,0.00018575,2]
[387843582,1758919344141,-148.05768434,0.00018575,2]
[387843583,1758919346822,-178.0,0.00018575,2]
[387843586,1758919503664,279.14,0.00018065,2]
[387843587,1758919514977,150.0,0.00018,2]
[387843588,1758919515309,150.0,0.00018,2]
[387843590,1758919666675,194.23,8.956e-05,2]
[387843591,1758919729652,250.0,0.00017884,2]
[387843653,1758919806820,596.5,0.0001803,2]
[387843654,1758919808908,300.0,0.000183,2]
[387843655,1758919809175,2500.0,0.000183,2]
[387843656,1758919809250,2500.0,0.00018463,2]
[387843657,1758919809330,2500.0,0.00018463,2]
[387843658,1758919810356,195.0,0.000183,2]
[387843659,1758919810460,195.0,0.00018463,2]
[387843661,1758919811917,2000.0,0.000183,2]
[387843662,1758919812244,2000.0,0.00018463,2]
[387843663,1758919812311,2000.0,0.00018463,2]
[387843668,1758919831692,-1200.0,0.0001857,2]
[387843669,1758919831700,-147.2369513,0.00018571,2]
[387843670,1758919831752,-303.01570397,0.00018571,2]
[387843671,1758919831762,-500.0,0.00018571,2]
[387843672,1758919831772,-500.0,0.00018571,2]
[387843673,1758919831781,-500.0,0.00018571,2]
[387843674,1758919831790,-385.82907017,0.00018571,2]
[387843675,1758919831799,-500.0,0.00018571,2]
[387843676,1758919831808,-500.0,0.00018571,2]
[387843677,1758919831816,-500.0,0.00018571,2]
[387843678,1758919831826,-500.0,0.00018571,2]
[387843679,1758919831835,-485.62185009,0.00018571,2]
[387843680,1758919831958,-14.37814991,0.00018571,2]
[387843681,1758919831969,-500.0,0.00018571,2]
[387843682,1758919831979,-172.70633874,0.00018571,2]
[387843683,1758919831988,-500.0,0.00018571,2]
[387843684,1758919831998,-500.0,0.00018571,2]
[387843685,1758919832007,-500.0,0.00018571,2]
[387843698,1758919832244,-500.0,0.00018571,2]
[387843702,1758919832274,-500.0,0.00018571,2]
[387843704,1758919832282,-500.0,0.00018571,2]
[387843705,1758919832289,-500.0,0.00018571,2]
[387843707,1758919832297,-195.0,0.00018572,2]
[387843709,1758919832306,-300.0,0.00018573,2]
[387843711,1758919832315,-300.0,0.00018573,2]
[387843713,1758919832324,-150.0,0.00018623,7]
[387843715,1758919832333,-1000.0,0.00018797,2]
[387843717,1758919832343,-400.0,0.000188,6]
[387843719,1758919832352,-900.0,0.000189,6]
[387843721,1758919832362,-2500.0,0.000189,2]
[387843723,1758919832371,-168.51703878,0.00018928,2]
[387843725,1758919832380,-1025.64739924,0.0001893,2]
[387843738,1758919832488,-570.84080728,0.0001893,2]
[387843740,1758919832499,-337.9181578,0.0001893,2]
[387843795,1758919838801,-496.15044239,0.0001893,2]
[387843796,1758919838811,-213.16486834,0.00018969,2]
[387843797,1758919838929,-65.97513166,0.00018969,2]
[387843798,1758919838939,-500.0,0.00018973,2]
[387843799,1758919838949,-151.0,0.00018989,2]
[387843800,1758919838958,-151.0,0.00018989,2]
[387843801,1758919838967,-151.0,0.00018989,2]
[387843802,1758919838977,-151.0,0.00018989,2]
[387843803,1758919838987,-151.0,0.00018989,2]
[387843804,1758919838997,-151.0,0.00018989,2]
[387843805,1758919839006,-151.0,0.00018989,2]
[387843806,1758919839015,-200.0,0.00018989,2]
[387843807,1758919839024,-151.0,0.00018989,2]
[387843808,1758919839033,-151.0,0.00018989,2]
[387843809,1758919839042,-151.0,0.00018989,2]
[387843810,1758919839052,-200.0,0.00018989,2]
[387843811,1758919839062,-151.0,0.00018989,2]
[387843812,1758919839071,-151.0,0.00018989,2]
[387843813,1758919839081,-151.0,0.00018989,2]
[387843814,1758919839091,-151.0,0.00018989,2]
[387843815,1758919839101,-151.0,0.00018989,2]
[387843816,1758919839110,-151.0,0.00018989,2]
[387843817,1758919839120,-151.0,0.00018989,2]
[387843818,1758919839129,-151.0,0.00018989,2]
[387843819,1758919839139,-151.0,0.00018989,2]
[387843820,1758919839149,-151.0,0.00018989,2]
[387843821,1758919839159,-151.0,0.00018989,2]
[387843822,1758919839169,-151.0,0.00018989,2]
[387843823,1758919839178,-151.0,0.00018989,2]
[387843824,1758919839187,-151.0,0.00018989,2]
[387843825,1758919839197,-151.0,0.00018989,2]
[387843826,1758919839207,-151.0,0.00018989,2]
[387843827,1758919839217,-151.0,0.00018989,2]
[387843828,1758919839227,-151.0,0.00018989,2]
[387843829,1758919839236,-151.0,0.00018989,2]
[387843830,1758919839245,-500.0,0.00018989,2]
[387843831,1758919839254,-32.02486833,0.00018989,2]
[387843836,1758919841322,-924.77584738,0.00018988,2]
[387843837,1758919841333,-118.97513167,0.00018989,2]
[387843838,1758919841343,-500.0,0.00018989,2]
[387843839,1758919841352,-151.0,0.00018989,2]
[387843840,1758919841362,-500.0,0.00018989,2]
[387843841,1758919841372,-151.0,0.00018989,2]
[387843842,1758919841382,-500.0,0.00018989,2]
[387843843,1758919841391,-151.0,0.00018989,2]
[387843844,1758919841401,-200.0,0.00018989,2]
[387843845,1758919841411,-322.6107,0.00018996,2]
[387843846,1758919841420,-151.96697691,0.00018996,2]
[387843847,1758919841430,-500.0,0.00018996,2]
[387843848,1758919841440,-151.0,0.00018996,2]
[387843849,1758919841449,-500.0,0.00018996,2]
[387843850,1758919841459,-500.0,0.00018996,2]
[387843851,1758919841469,-500.0,0.00018996,2]
[387843852,1758919841479,-152.77939838,0.00018996,2]
[387843853,1758919841489,-160.0,0.00018996,2]
[387843854,1758919841499,-695.39793187,0.00018996,2]
[387843855,1758919841508,-201.93286099,0.00018996,2]
[387843856,1758919841518,-151.0,0.00018996,2]
[387843857,1758919841528,-500.0,0.00018996,2]
[387843858,1758919841537,-267.46074303,0.00018996,2]
[387843859,1758919841547,-411.9109083,0.00018999,2]
[387843860,1758919841556,-405.8922,0.00018999,2]
[387843861,1758919841566,-423.20568358,0.00018999,2]
[387843862,1758919841576,-375.23513401,0.00018999,2]
[387843863,1758919841586,-1110110.21331238,0.00019,2]
[387843864,1758919841596,-1533.31764892,0.00019,2]
[387843865,1758919841608,-286.3810725,0.00019028,2]
[387843866,1758919841619,-156.05759828,0.00019128,2]
[387843867,1758919841628,-155.00077916,0.00019128,2]
[387843868,1758919841638,-4631.95438903,0.00019128,2]
[387843869,1758919841649,-4631.95438897,0.00019214,2]
[387843870,1758919841660,-4631.95438897,0.000193,2]
[387843871,1758919841670,-232.27,0.00019383,2]
[387843872,1758919841679,-4631.95438897,0.00019385,2]
[387843873,1758919841689,-810.87736772,0.00019399,2]
[387843874,1758919841874,-4631.95438897,0.00019471,2]
[387843875,1758919841943,-1000.0,0.00019521,2]
[387843876,1758919841952,-151.0,0.00019544,2]
[387843877,1758919841962,-4631.95438897,0.00019557,2]
[387843878,1758919841972,-1300.0,0.000196,7]
[387843879,1758919841982,-4485.18603694,0.00019601,2]
[387843880,1758919841992,-4631.95438897,0.00019643,2]
[387843881,1758919842002,-4485.18603694,0.00019676,2]
[387843882,1758919842011,-2349.5452,0.000197,2]
[387843883,1758919842020,-1800.0,0.000197,7]
[387843884,1758919842030,-4631.95438897,0.00019728,2]
[387843885,1758919842041,-155.00077915,0.00019734,2]
[387843886,1758919842050,-4485.18603694,0.00019751,2]
[387843887,1758919842059,-2200.0,0.000198,7]
[387843888,1758919842068,-1000.0,0.00019807,2]
[387843889,1758919842077,-4485.18603694,0.00019825,2]
[387843890,1758919842086,-300.0,0.00019834,2]
[387843891,1758919842096,-2500.0,0.00019834,2]
[387843892,1758919842105,-195.0,0.00019834,2]
[387843893,1758919842114,-279.89299635,0.00019834,4]
[387843894,1758919842124,-2000.0,0.00019834,2]
[387843895,1758919842133,-200.0,0.0001984,2]
[387843896,1758919842143,-1267.52479268,0.00019847,2]
[387843897,1758919842152,-300.58300891,0.00019848,2]
[387843898,1758919842162,-268.81708348,0.0001985,2]
[387843899,1758919842171,-1267.52479268,0.00019852,2]
[387843900,1758919842181,-285.54395784,0.00019857,2]
[387843901,1758919842190,-285.54395784,0.00019859,2]
[387843902,1758919842199,-390.32597262,0.0001986,2]
[387843903,1758919842209,-390.32597262,0.0001986,2]
[387843904,1758919842219,-268.81708348,0.00019862,2]
[387843905,1758919842228,-285.54395784,0.00019867,2]
[387843906,1758919842238,-300.58300891,0.00019868,2]
[387843907,1758919842248,-268.81708348,0.00019869,2]
[387843908,1758919842257,-199.617776,0.00019871,2]
[387843909,1758919842267,-279.14,0.00019872,2]
[387843910,1758919842276,-199.617776,0.00019877,2]
[387843911,1758919842286,-199.617776,0.00019877,2]
[387843912,1758919842295,-1267.52479268,0.00019879,2]
[387843913,1758919842306,-390.32597262,0.00019881,2]
[387843914,1758919842315,-390.32597262,0.00019889,2]
[387843915,1758919842325,-268.81708348,0.00019892,2]
[387843916,1758919842334,-268.81708348,0.00019895,2]
[387843917,1758919842343,-1322.6379,0.00019895,2]
[387843918,1758919842353,-300.58300891,0.00019896,2]
[387843919,1758919842362,-268.81708348,0.00019898,2]
[387843920,1758919842373,-606.0,0.00019898,2]
[387843921,1758919842382,-4485.18603694,0.000199,2]
[387843922,1758919842391,-400.0,0.000199,7]
[387843923,1758919842401,-186.42265192,0.000199,2]
[387843924,1758919842410,-181.09044594,0.000199,2]
[387843925,1758919842420,-761.5867282,0.000199,2]
[387843926,1758919842430,-1267.52479268,0.00019902,2]
[387843927,1758919842439,-300.58300891,0.00019909,2]
[387843928,1758919842449,-199.617776,0.00019915,2]
[387843929,1758919842459,-285.54395784,0.00019915,2]
[387843930,1758919842468,-285.54395784,0.00019927,2]
[387843931,1758919842478,-300.58300891,0.00019928,2]
[387843932,1758919842487,-199.617776,0.00019935,2]
[387843933,1758919842496,-285.54395784,0.00019936,2]
[387843934,1758919842506,-390.32597262,0.00019938,2]
[387843935,1758919842515,-390.32597262,0.00019938,2]
[387843936,1758919842525,-1182.488,0.00019939,2]
[387843937,1758919842535,-1267.52479268,0.0001994,2]
[387843938,1758919842545,-1267.52479268,0.0001994,2]
[387843939,1758919842554,-199.617776,0.00019945,2]
[387843940,1758919842564,-285.54395784,0.00019958,2]
[387843941,1758919842574,-268.81708348,0.00019972,2]
[387843942,1758919842587,-1267.52479268,0.00019972,2]
[387843943,1758919842597,-500.0,0.00019973,2]
[387843944,1758919842607,-546.84527779,0.00019973,2]
[387843945,1758919842619,-500.0,0.00019973,2]
[387843946,1758919842630,-412.45915899,0.00019973,2]
[387843947,1758919842639,-500.0,0.00019973,2]
[387843948,1758919842649,-500.78878011,0.00019973,2]
[387843949,1758919842659,-546.99447227,0.00019973,2]
[387843950,1758919842668,-500.21213708,0.00019973,2]
[387843951,1758919842678,-500.0,0.00019973,2]
[387843952,1758919842687,-500.0,0.00019973,2]
[387843953,1758919842696,-500.0,0.00019973,2]
[387843954,1758919842706,-500.0,0.00019973,2]
[387843955,1758919842717,-500.0,0.00019973,2]
[387843956,1758919842727,-500.0,0.00019973,2]
[387843957,1758919842736,-169.36192923,0.00019973,2]
[387843958,1758919842746,-500.0,0.00019973,2]
[387843959,1758919842755,-500.4499923,0.00019973,2]
[387843960,1758919842764,-500.0,0.00019973,2]
[387843961,1758919842774,-500.0,0.00019973,2]
[387843962,1758919842783,-500.49942284,0.00019973,2]
[387843963,1758919842793,-500.0,0.00019973,2]
[387843964,1758919842803,-500.0,0.00019973,2]
[387843965,1758919842812,-500.0,0.00019973,2]
[387843966,1758919842822,-500.0,0.00019973,2]
[387843967,1758919842831,-522.24093639,0.00019973,2]
[387843968,1758919842840,-500.0,0.00019973,2]
[387843969,1758919842850,-500.0,0.00019973,2]
[387843970,1758919842860,-528.26558219,0.00019973,2]
[387843971,1758919842870,-500.8314279,0.00019973,2]
[387843972,1758919842879,-500.0,0.00019973,2]
[387843973,1758919842889,-500.0,0.00019973,2]
[387843974,1758919842899,-339.2902176,0.00019973,2]
[387843975,1758919842908,-500.4621702,0.00019973,2]
[387843976,1758919842918,-500.0,0.00019973,2]
[387843977,1758919842927,-150.0,0.00019973,2]
[387843978,1758919842937,-500.0,0.00019973,2]
[387843979,1758919842947,-500.0,0.00019973,2]
[387843980,1758919842957,-163.08659351,0.00019973,2]
[387843981,1758919842966,-501.694095,0.00019973,2]
[387843982,1758919842977,-409.63052747,0.00019973,2]
[387843983,1758919842987,-500.0,0.00019973,2]
[387843984,1758919843000,-548.36188869,0.00019973,2]
[387843985,1758919843010,-500.0,0.00019973,2]
[387843986,1758919843020,-500.0,0.00019973,2]
[387843987,1758919843029,-500.0,0.00019973,2]
[387843988,1758919843040,-161.07748899,0.00019973,2]
[387843989,1758919843050,-300.58300891,0.00019985,2]
[387843990,1758919843060,-300.58300891,0.00019987,2]
[387843991,1758919843071,-167.8364595,0.00019987,2]
[387843992,1758919843080,-199.617776,0.00019989,2]
[387843993,1758919843090,-5000.0,0.00019992,2]
[387843994,1758919843101,-6273.8387477,0.00019994,2]
[387843995,1758919843110,-5000.0,0.00019994,2]
[387843996,1758919843120,-3636.3488303,0.00019994,2]
[387843997,1758919843130,-4554.7417795,0.00019994,2]
[387843998,1758919843140,-427187.72756615,0.00019995,2]
[387843999,1758919843150,-200.0,0.00019995,2]
[387844000,1758919843159,-562.02623,0.00019995,2]
[387844001,1758919843169,-150.0,0.00019999,2]
[387844002,1758919843179,-201.40855621,0.00019999,2]
[387844003,1758919843188,-500.0,0.00019999,2]
[387844004,1758919843198,-390.32597262,0.00019999,2]
[387844005,1758919843208,-150.0,0.00019999,2]
[387844006,1758919843218,-5000.0,0.00019999,2]
[387844007,1758919843227,-500.0,0.00019999,2]
[387844008,1758919843237,-150.0,0.00019999,2]
[387844009,1758919843247,-163.01947938,0.00019999,2]
[387844010,1758919843256,-500.0,0.00019999,2]
[387844011,1758919843266,-817.0,0.00019999,2]
[387844012,1758919843276,-150.0,0.00019999,2]
[387844013,1758919843286,-911.0,0.00019999,2]
[387844014,1758919843296,-785.0,0.0002,2]
[387844015,1758919843306,-3395.0,0.0002,2]
[387844016,1758919843315,-638.602,0.0002,2]
[387844017,1758919843325,-1305.0,0.0002,2]
[387844018,1758919843335,-417.474,0.0002,2]
[387844019,1758919843346,-603.0,0.0002,2]
[387844020,1758919843357,-18905.0,0.0002,2]
[387844021,1758919843367,-6228.0,0.0002,2]
[387844022,1758919843377,-4179.0,0.0002,2]
[387844023,1758919843387,-728.0,0.0002,2]
[387844024,1758919843398,-1179.0,0.0002,2]
[387844025,1758919843408,-500.0,0.0002,2]
[387844026,1758919843420,-500.0,0.0002,2]
[387844027,1758919843431,-289.58,0.0002,2]
[387844028,1758919843441,-260204.83053949,0.0002,2]
[387844031,1758919843811,-3145.11315258,0.0002,2]
[387844038,1758919849700,-500.0,0.0001857,2]
[387844039,1758919849710,-352.52292653,0.0001857,2]
[387844040,1758919849719,-3653.48307367,0.00019814,2]
[387844041,1758919849731,-451.195,0.00019814,2]
[387844042,1758919849742,-454.83950026,0.00019814,2]
[387844043,1758919849971,-72.43681504,0.00019814,2]
[387844044,1758919849981,-488.03470787,0.0002,2]
[387844045,1758919849992,-6855.90067227,0.0002,2]
[387844046,1758919850010,-546.65541307,0.0002,2]
[387844047,1758919850021,-5807.20328423,0.0002,2]
[387844048,1758919850059,-28021.28672805,0.0002,2]
[387844049,1758919850070,-19204.07534707,0.0002,2]